fUSD/lending_fUSD_20240409
["ID","MTS","AMOUNT","RATE_DAILY","PERIOD"]
[321933307,1712641849305,-546.25745641,0.00020821,2]
[321933308,1712641849316,-500.0,0.00020821,2]
[321933309,1712641849326,-500.0,0.00020821,2]
[321933310,1712641849335,-1485.2,0.00020821,2]
[321933311,1712641849344,-500.0,0.00020821,2]
[321933312,1712641849354,-2530.96,0.00020821,2]
[321933313,1712641849364,-5366.35,0.00020821,2]
[321933314,1712641849373,-500.0,0.00020821,2]
[321933315,1712641849382,-500.0,0.00020821,2]
[321933316,1712641849392,-500.0,0.00020821,2]
[321933317,1712641849401,-500.0,0.00020821,2]
[321933318,1712641849412,-500.0,0.00020821,2]
[321933319,1712641849421,-1784.32,0.00020821,2]
[321933320,1712641849431,-500.0,0.00020821,2]
[321933321,1712641849440,-500.0,0.00020821,2]
[321933322,1712641849451,-546.56591022,0.00020821,2]
[321933323,1712641849460,-500.0,0.00020821,2]
[321933324,1712641849470,-500.0,0.00020821,2]
[321933325,1712641849480,-500.0,0.00020821,2]
[321933326,1712641849491,-1100.33,0.00020821,2]
[321933327,1712641849500,-500.0,0.00020821,2]
[321933328,1712641849509,-500.0,0.00020821,2]
[321933329,1712641849519,-500.0,0.00020821,2]
[321933330,1712641849529,-500.0,0.00020821,2]
[321933331,1712641849539,-500.0,0.00020821,2]
[321933332,1712641849550,-500.0,0.00020821,2]
[321933333,1712641849561,-500.0,0.00020821,2]
[321933334,1712641849573,-500.0,0.00020821,2]
[321933335,1712641849585,-500.0,0.00020821,2]
[321933336,1712641849594,-4448.42,0.00020821,2]
[321933337,1712641849604,-6160.99,0.00020821,2]
[321933338,1712641849616,-500.0,0.00020821,2]
[321933339,1712641849625,-2131.35,0.00020821,2]
[321933340,1712641849635,-500.0,0.00020821,2]
[321933341,1712641849644,-3881.83,0.00020821,2]
[321933342,1712641849654,-8749.74,0.00020821,2]
[321933343,1712641849664,-5124.73,0.00020821,2]
[321933344,1712641849673,-500.0,0.00020821,2]
[321933345,1712641849682,-500.0,0.00020821,2]
[321933346,1712641849691,-916.65,0.00020821,2]
[321933347,1712641849700,-500.0,0.00020821,2]
[321933348,1712641849712,-2362.73,0.00020821,2]
[321933349,1712641849722,-4167.23,0.00020821,2]
[321933350,1712641849731,-538.42,0.00020821,2]
[321933351,1712641849740,-500.0,0.00020821,2]
[321933352,1712641849750,-500.0,0.00020821,2]
[321933353,1712641849760,-2148.21,0.00020821,2]
[321933354,1712641849770,-8926.03,0.00020821,2]
[321933355,1712641849779,-500.0,0.00020821,2]
[321933356,1712641849789,-500.0,0.00020821,2]
[321933357,1712641849797,-7996.51,0.00020821,2]
[321933358,1712641849809,-513.57524273,0.00020821,2]
[321933359,1712641849819,-500.0,0.00020821,2]
[321933360,1712641849829,-5911.96,0.00020821,2]
[321933361,1712641849839,-1082.55,0.00020821,2]
[321933362,1712641849849,-1212.2,0.00020821,2]
[321933363,1712641849858,-2080.11,0.00020821,2]
[321933364,1712641849868,-500.0,0.00020821,2]
[321933365,1712641849877,-500.0,0.00020821,2]
[321933366,1712641849886,-500.0,0.00020821,2]
[321933367,1712641849895,-777.98,0.00020821,2]
[321933368,1712641849905,-500.0,0.00020821,2]
[321933369,1712641849914,-2021.89,0.00020821,2]
[321933370,1712641849923,-5849.8692172,0.00020821,2]
[321933371,1712641849936,-5803.79800612,0.00020821,2]
[321933372,1712641850759,-2294.2845,0.00020694,2]
[321933373,1712641850769,-20243.04277668,0.00020821,2]
[321933374,1712641850778,-683.62748507,0.00020821,2]
[321933375,1712641850809,-876.34749943,0.00020821,2]
[321933376,1712641850821,-255.22235794,0.00020821,2]
[321933377,1712641850832,-660.03416019,0.00020821,2]
[321933378,1712641851483,-758.19771398,0.00020821,2]
[321933379,1712641851677,-640.36078339,0.00020821,2]
[321933380,1712641851687,-11865.11,0.00020821,2]
[321933381,1712641851696,-500.0,0.00020821,2]
[321933382,1712641851706,-504.75246299,0.00020821,2]
[321933383,1712641851715,-3972.94,0.00020821,2]
[321933384,1712641851725,-899.98,0.00020821,2]
[321933385,1712641851734,-911.82,0.00020821,2]
[321933386,1712641851744,-624.39,0.00020821,2]
[321933387,1712641851754,-3925.75,0.00020821,2]
[321933388,1712641851763,-505.08331748,0.00020821,2]
[321933389,1712641851772,-500.0,0.00020821,2]
[321933390,1712641851782,-4525.93,0.00020821,2]
[321933391,1712641851792,-524.87,0.00020821,2]
[321933392,1712641851802,-555.72,0.00020821,2]
[321933393,1712641851812,-897.46,0.00020821,2]
[321933394,1712641851822,-502.16830252,0.00020821,2]
[321933395,1712641851832,-1551.13,0.00020821,2]
[321933396,1712641851842,-1020.93,0.00020821,2]
[321933397,1712641851853,-3306.02,0.00020821,2]
[321933398,1712641851863,-558.02658259,0.00020821,2]
[321933399,1712641851873,-4397.65,0.00020821,2]
[321933400,1712641851883,-3733.3,0.00020821,2]
[321933401,1712641851892,-500.0,0.00020821,2]
[321933402,1712641851902,-4159.02,0.00020821,2]
[321933403,1712641851913,-948.17,0.00020821,2]
[321933404,1712641851922,-1316.75228144,0.00020821,2]
[321933405,1712641851934,-2956.73771856,0.00020821,2]
[321933406,1712641851943,-500.0,0.00020821,2]
[321933407,1712641851953,-4206.43,0.00020821,2]
[321933408,1712641851962,-500.0,0.00020821,2]
[321933409,1712641851972,-423.3550097,0.00020821,2]
[321933410,1712641851981,-2605.05,0.00020821,2]
[321933411,1712641851990,-1894.05,0.00020821,2]
[321933412,1712641852000,-574.86,0.00020821,2]
[321933413,1712641852009,-201.08,0.00020821,2]
[321933414,1712641852018,-500.0,0.00020821,2]
[321933415,1712641852028,-500.0,0.00020821,2]
[321933416,1712641852037,-500.0,0.00020821,2]
[321933417,1712641852047,-1486.09365779,0.00020821,2]
[321933418,1712641852059,-2156.00634221,0.00020821,2]
[321933419,1712641852069,-500.0,0.00020821,2]
[321933420,1712641852078,-414.27777771,0.00020821,2]
[321933421,1712641852090,-85.72222229,0.00020821,2]
[321933422,1712641852101,-452.38012832,0.00020821,2]
[321933423,1712641852110,-954.94,0.00020821,2]
[321933424,1712641852120,-5286.14,0.00020821,2]
[321933425,1712641852129,-4735.03,0.00020821,2]
[321933426,1712641852138,-941.18,0.00020821,2]
[321933427,1712641852147,-500.0,0.00020821,2]
[321933428,1712641852156,-562.28449134,0.00020821,2]
[321933429,1712641852166,-500.0,0.00020821,2]
[321933430,1712641852174,-2306.16993883,0.00020821,2]
[321933431,1712641852186,-222.90006117,0.00020821,2]
[321933432,1712641852196,-500.0,0.00020821,2]
[321933433,1712641852206,-776.07,0.00020821,2]
[321933434,1712641852215,-500.0,0.00020821,2]
[321933435,1712641852227,-587.78674345,0.00020821,2]
[321933436,1712641852237,-3565.56,0.00020821,2]
[321933437,1712641852246,-500.0,0.00020821,2]
[321933438,1712641852256,-500.0,0.00020821,2]
[321933439,1712641852266,-501.47229007,0.00020821,2]
[321933440,1712641852275,-517.48,0.00020821,2]
[321933441,1712641852285,-1789.27,0.00020821,2]
[321933442,1712641852294,-504.03323306,0.00020821,2]
[321933443,1712641852304,-500.0,0.00020821,2]
[321933444,1712641852313,-2764.48,0.00020821,2]
[321933445,1712641852323,-500.0,0.00020821,2]
[321933446,1712641852333,-8642.48,0.00020821,2]
[321933447,1712641852343,-500.0,0.00020821,2]
[321933448,1712641852354,-375.10323707,0.00020821,2]
[321933449,1712641852363,-610.18,0.00020821,2]
[321933450,1712641852372,-673.91,0.00020821,2]
[321933451,1712641852381,-500.0,0.00020821,2]
[321933452,1712641852390,-501.74962343,0.00020821,2]
[321933453,1712641852400,-1679.43,0.00020821,2]
[321933454,1712641852408,-762.21,0.00020821,2]
[321933455,1712641852418,-1532.02,0.00020821,2]
[321933456,1712641852427,-10156.85,0.00020821,2]
[321933457,1712641852436,-500.0,0.00020821,2]
[321933458,1712641852445,-4103.84185646,0.00020821,2]
[321933459,1712641852457,-2871.50814354,0.00020821,2]
[321933460,1712641852466,-523.76,0.00020821,2]
[321933461,1712641852476,-3495.71,0.00020821,2]
[321933462,1712641852488,-1149.95,0.00020821,2]
[321933463,1712641852498,-500.0,0.00020821,2]
[321933464,1712641852507,-847.6,0.00020821,2]
[321933465,1712641852516,-500.0,0.00020821,2]
[321933466,1712641852526,-1414.59,0.00020821,2]
[321933467,1712641852535,-500.0,0.00020821,2]
[321933468,1712641852544,-1064.15,0.00020821,2]
[321933469,1712641852554,-500.0,0.00020821,2]
[321933470,1712641852565,-511.90195822,0.00020821,2]
[321933471,1712641852576,-500.0,0.00020821,2]
[321933472,1712641852590,-500.0,0.00020821,2]
[321933473,1712641852956,-503.19949673,0.00020821,2]
[321933474,1712641852968,-500.0,0.00020821,2]
[321933475,1712641852978,-781.74302476,0.00020821,2]
[321933476,1712641852992,-1898.71174674,0.00020821,2]
[321933477,1712641853003,-156.46332,0.00020822,2]
[321933478,1712641853013,-157.040914,0.00020828,2]
[321933479,1712641853024,-1000.0,0.00020831,2]
[321933480,1712641853034,-205.771884,0.00020832,2]
[321933481,1712641853043,-1000.0,0.00020832,2]
[321933482,1712641853052,-200.0,0.00020832,2]
[321933483,1712641853063,-157.040914,0.00020838,2]
[321933484,1712641853074,-157.040914,0.00020848,2]
[321933485,1712641853084,-157.040914,0.00020858,2]
[321933486,1712641853095,-157.040914,0.00020868,2]
[321933487,1712641853106,-157.040914,0.00020878,2]
[321933488,1712641853115,-518.0,0.00020885,2]
[321933489,1712641853124,-157.040914,0.00020888,2]
[321933490,1712641853134,-6269.77551855,0.00020895,2]
[321933491,1712641853143,-157.040914,0.00020898,2]
[321933492,1712641853153,-5000.0,0.000209,2]
[321933493,1712641853164,-3839.15597492,0.000209,2]
[321933494,1712641853176,-950.64312508,0.000209,2]
[321933495,1712641853186,-2562.21196117,0.00020951,2]
[321933496,1712641853195,-150.0,0.00020968,2]
[321933497,1712641853206,-1355.94874232,0.00020975,2]
[321933498,1712641853215,-963.1,0.00020989,2]
[321933499,1712641853225,-439.52366234,0.00020995,2]
[321933500,1712641853235,-261.84985234,0.00020995,2]
[321933501,1712641853245,-190.09889384,0.00020995,3]
[321933502,1712641853256,-907.36979948,0.00020995,2]
[321933503,1712641853266,-5587.11458188,0.00020995,2]
[321933504,1712641853275,-199.77659903,0.00020995,3]
[321933505,1712641853285,-229.37040124,0.00020995,2]
[321933506,1712641853294,-1176.4104072,0.00020996,2]
[321933507,1712641853303,-500.0,0.00020997,2]
[321933508,1712641853312,-5827.91546642,0.00020999,2]
[321933509,1712641853322,-150.51568958,0.00020999,2]
[321933510,1712641853331,-300.0,0.00020999,2]
[321933511,1712641853341,-300.0,0.00020999,2]
[321933512,1712641853351,-300.0,0.00020999,2]
[321933513,1712641853361,-300.0,0.00020999,2]
[321933514,1712641853370,-300.0,0.00020999,2]
[321933515,1712641853380,-355.38779604,0.00020999,2]
[321933516,1712641853390,-1246.76,0.00020999,2]
[321933517,1712641853400,-1246.76,0.00020999,2]
[321933518,1712641853411,-1246.76,0.00020999,2]
[321933519,1712641853421,-1246.76,0.00020999,2]
[321933520,1712641853431,-963.1,0.00020999,2]
[321933521,1712641853441,-718.39130507,0.00020999,2]
[321933522,1712641853453,-244.70869493,0.00020999,2]
[321933523,1712641853463,-963.1,0.00020999,2]
[321933524,1712641853472,-500.0,0.00020999,2]
[321933525,1712641853485,-500.0,0.00020999,2]
[321933526,1712641853494,-500.0,0.00020999,2]
[321933527,1712641853503,-500.0,0.00020999,2]
[321933528,1712641853515,-500.0,0.00020999,2]
[321933529,1712641853524,-512.34928879,0.00020999,2]
[321933530,1712641853533,-402.96064892,0.00021,2]
[321933531,1712641853544,-28386.18251436,0.00021,2]
[321933532,1712641853556,-8227.44957079,0.00021,2]
[321933533,1712641853568,-53137.3536767,0.00021,2]
[321933534,1712641853581,-54891.37540606,0.00021,2]
[321933535,1712641853597,-24413.22253142,0.00021,2]
[321933536,1712641853610,-8926.13180915,0.00021,2]
[321933537,1712641853621,-10517.169,0.00021,2]
[321933538,1712641853633,-2968.14000747,0.00021,2]
[321933539,1712641853732,-3244.41490351,0.00021,2]
[321933540,1712641853768,-144379.44580086,0.00021,2]
[321933541,1712641853779,-919.56,0.00021,2]
[321933542,1712641853790,-433.25,0.00021,2]
[321933543,1712641853800,-373696.19546957,0.00021,2]
[321933544,1712641853811,-55178.88295695,0.00021,2]
[321933545,1712641853821,-151.099999,0.00021,2]
[321933546,1712641853831,-481.0,0.00021,3]
[321933547,1712641853840,-394.0,0.00021,2]
[321933548,1712641853849,-187.0,0.00021,3]
[321933549,1712641853859,-18000.0,0.00021,2]
[321933550,1712641853868,-17927.7454099,0.00021,2]
[321933551,1712641853877,-3500.0,0.00021,2]
[321933552,1712641853886,-2000.0,0.00021,2]
[321933553,1712641853895,-200.0,0.00021,2]
[321933554,1712641853905,-550.0,0.00021,3]
[321933555,1712641853914,-200.0,0.00021,2]
[321933556,1712641853923,-666.47544,0.00021,2]
[321933557,1712641853933,-9980.0,0.00021001,2]
[321933558,1712641853942,-10463.5342551,0.0002101,2]
[321933559,1712641853951,-28203.9747604,0.0002101,2]
[321933560,1712641853960,-6060.6983308,0.0002101,2]
[321933561,1712641853970,-68750.7812144,0.00021024,2]
[321933562,1712641853979,-777.2844774,0.00021038,2]
[321933563,1712641853988,-7571.7680253,0.00021052,2]
[321933564,1712641853997,-963.1,0.00021093,2]
[321933565,1712641854007,-1246.76,0.00021094,2]
[321933566,1712641854017,-1246.76,0.00021094,2]
[321933567,1712641854027,-1246.76,0.00021094,2]
[321933568,1712641854036,-1246.76,0.00021094,2]
[321933569,1712641854046,-1246.76,0.00021094,2]
[321933570,1712641854055,-1246.76,0.00021094,2]
[321933571,1712641854065,-963.1,0.00021094,2]
[321933572,1712641854074,-963.1,0.00021094,2]
[321933573,1712641854084,-963.1,0.00021094,2]
[321933574,1712641854094,-963.1,0.00021094,2]
[321933575,1712641854103,-963.1,0.00021094,2]
[321933576,1712641854113,-963.1,0.00021094,2]
[321933577,1712641854123,-21174.31,0.00021095,2]
[321933578,1712641854133,-500.0,0.00021095,2]
[321933579,1712641854142,-500.0,0.00021095,2]
[321933580,1712641854152,-500.0,0.00021095,2]
[321933581,1712641854161,-442.72000617,0.00021095,2]
[321933582,1712641854170,-500.0,0.00021095,2]
[321933583,1712641854180,-518.23306452,0.00021095,2]
[321933584,1712641854189,-500.0,0.00021095,2]
[321933585,1712641854199,-500.0,0.00021095,2]
[321933586,1712641854208,-548.57003993,0.00021095,2]
[321933587,1712641854218,-159.75618297,0.00021095,2]
[321933588,1712641854227,-500.0,0.00021095,2]
[321933589,1712641854237,-500.0,0.00021095,2]
[321933590,1712641854246,-542.91,0.00021095,2]
[321933591,1712641854256,-500.0,0.00021095,2]
[321933592,1712641854266,-500.0,0.00021095,2]
[321933593,1712641854276,-654.32,0.00021095,2]
[321933594,1712641854285,-500.0,0.00021095,2]
[321933595,1712641854295,-420.69107778,0.00021095,2]
[321933596,1712641854305,-508.75366127,0.00021095,2]
[321933597,1712641854314,-500.0,0.00021095,2]
[321933598,1712641854323,-500.0,0.00021095,2]
[321933599,1712641854333,-500.0,0.00021095,2]
[321933600,1712641854342,-626.76,0.00021095,2]
[321933601,1712641854353,-514.50601941,0.00021095,2]
[321933602,1712641854362,-509.78616848,0.00021095,2]
[321933603,1712641854371,-500.0,0.00021095,2]
[321933604,1712641854381,-500.0,0.00021095,2]
[321933605,1712641854391,-678.02,0.00021095,2]
[321933606,1712641854400,-801.88,0.00021095,2]
[321933607,1712641854410,-500.0,0.00021095,2]
[321933608,1712641854420,-500.0,0.00021095,2]
[321933609,1712641854431,-500.0,0.00021095,2]
[321933610,1712641854442,-524.41488589,0.00021095,2]
[321933611,1712641854452,-500.0,0.00021095,2]
[321933612,1712641854461,-724.64,0.00021095,2]
[321933613,1712641854471,-500.0,0.00021095,2]
[321933614,1712641854482,-618.1108645,0.00021095,2]
[321933615,1712641854492,-500.0,0.00021095,2]
[321933616,1712641854501,-500.0,0.00021095,2]
[321933617,1712641854511,-500.0,0.00021095,2]
[321933618,1712641854521,-166.70372653,0.00021095,2]
[321933619,1712641854531,-500.0,0.00021095,2]
[321933620,1712641854540,-500.0,0.00021095,2]
[321933621,1712641854549,-500.0,0.00021095,2]
[321933622,1712641854562,-500.0,0.00021095,2]
[321933623,1712641854572,-500.0,0.00021095,2]
[321933624,1712641854581,-500.0,0.00021095,2]
[321933625,1712641854590,-500.0,0.00021095,2]
[321933626,1712641854600,-500.0,0.00021095,2]
[321933627,1712641854609,-500.0,0.00021095,2]
[321933628,1712641854619,-500.0,0.00021095,2]
[321933629,1712641854628,-892.43,0.00021095,2]
[321933630,1712641854639,-500.0,0.00021095,2]
[321933631,1712641854649,-162.26009812,0.00021095,2]
[321933632,1712641854659,-500.0,0.00021095,2]
[321933633,1712641854669,-500.0,0.00021095,2]
[321933634,1712641854680,-500.0,0.00021095,2]
[321933635,1712641854689,-500.0,0.00021095,2]
[321933636,1712641854699,-500.0,0.00021095,2]
[321933637,1712641854710,-515.17,0.00021095,2]
[321933638,1712641854722,-500.0,0.00021095,2]
[321933639,1712641854732,-500.0,0.00021095,2]
[321933640,1712641854742,-500.0,0.00021095,2]
[321933641,1712641854751,-500.0,0.00021095,2]
[321933642,1712641854761,-500.0,0.00021095,2]
[321933643,1712641854772,-500.0,0.00021095,2]
[321933644,1712641854781,-539.77,0.00021095,2]
[321933645,1712641854790,-224.94539765,0.00021095,2]
[321933646,1712641854800,-500.0,0.00021095,2]
[321933647,1712641854810,-500.0,0.00021095,2]
[321933648,1712641854819,-500.0,0.00021095,2]
[321933649,1712641854829,-500.0,0.00021095,2]
[321933650,1712641854838,-580.89,0.00021095,2]
[321933651,1712641854850,-500.0,0.00021095,2]
[321933652,1712641854861,-500.0,0.00021095,2]
[321933653,1712641854870,-500.0,0.00021095,2]
[321933654,1712641854880,-500.0,0.00021095,2]
[321933655,1712641854889,-500.0,0.00021095,2]
[321933656,1712641854898,-500.0,0.00021095,2]
[321933657,1712641854907,-500.0,0.00021095,2]
[321933658,1712641854917,-500.0,0.00021095,2]
[321933659,1712641854926,-672.38,0.00021095,2]
[321933660,1712641854935,-500.0,0.00021095,2]
[321933661,1712641854945,-500.0,0.00021095,2]
[321933662,1712641854954,-500.0,0.00021095,2]
[321933663,1712641854963,-500.0,0.00021095,2]
[321933664,1712641854972,-500.0,0.00021095,2]
[321933665,1712641854981,-1005.38,0.00021095,2]
[321933666,1712641854990,-1359.26,0.00021095,2]
[321933667,1712641855000,-960.57,0.00021095,2]
[321933668,1712641855009,-889.56,0.00021095,2]
[321933669,1712641855018,-562.03,0.00021095,2]
[321933670,1712641855030,-500.0,0.00021095,2]
[321933671,1712641855039,-603.4,0.00021095,2]
[321933672,1712641855048,-500.0,0.00021095,2]
[321933673,1712641855057,-500.0,0.00021095,2]
[321933674,1712641855067,-500.0,0.00021095,2]
[321933675,1712641855076,-1450.26,0.00021095,2]
[321933676,1712641855086,-500.0,0.00021095,2]
[321933677,1712641855096,-750.64,0.00021095,2]
[321933678,1712641855106,-500.0,0.00021095,2]
[321933679,1712641855116,-500.0,0.00021095,2]
[321933680,1712641855124,-500.0,0.00021095,2]
[321933681,1712641855134,-500.0,0.00021095,2]
[321933682,1712641855143,-500.0,0.00021095,2]
[321933683,1712641855153,-500.0,0.00021095,2]
[321933684,1712641855162,-266.0668226,0.00021095,2]
[321933685,1712641855171,-679.17,0.00021095,2]
[321933686,1712641855181,-192.24238307,0.00021095,2]
[321933687,1712641855191,-500.0,0.00021095,2]
[321933688,1712641855200,-500.0,0.00021095,2]
[321933689,1712641855210,-500.0,0.00021095,2]
[321933690,1712641855220,-500.0,0.00021095,2]
[321933691,1712641855230,-500.0,0.00021095,2]
[321933692,1712641855240,-500.0,0.00021095,2]
[321933693,1712641855250,-1110.03,0.00021095,2]
[321933694,1712641855259,-1318.14,0.00021095,2]
[321933695,1712641855270,-500.0,0.00021095,2]
[321933696,1712641855281,-500.0,0.00021095,2]
[321933697,1712641855291,-741.5,0.00021095,2]
[321933698,1712641855300,-500.0,0.00021095,2]
[321933699,1712641855403,-500.0,0.00021095,2]
[321933700,1712641855413,-500.0,0.00021095,2]
[321933701,1712641855422,-500.0,0.00021095,2]
[321933702,1712641855431,-1490.5,0.00021095,2]
[321933703,1712641855441,-539.53964271,0.00021095,2]
[321933704,1712641855450,-500.0,0.00021095,2]
[321933705,1712641855459,-500.0,0.00021095,2]
[321933706,1712641855468,-1081.98,0.00021095,2]
[321933707,1712641855478,-500.0,0.00021095,2]
[321933708,1712641855489,-500.0,0.00021095,2]
[321933709,1712641855498,-500.0,0.00021095,2]
[321933710,1712641855507,-500.0,0.00021095,2]
[321933711,1712641855516,-551.41,0.00021095,2]
[321933712,1712641855526,-500.0,0.00021095,2]
[321933713,1712641855535,-500.0,0.00021095,2]
[321933714,1712641855544,-500.0,0.00021095,2]
[321933715,1712641855553,-500.0,0.00021095,2]
[321933716,1712641855562,-500.0,0.00021095,2]
[321933717,1712641855572,-500.0,0.00021095,2]
[321933718,1712641855581,-500.0,0.00021095,2]
[321933719,1712641855590,-500.0,0.00021095,2]
[321933720,1712641855599,-500.0,0.00021095,2]
[321933721,1712641855610,-500.0,0.00021095,2]
[321933722,1712641855619,-523.22481618,0.00021095,2]
[321933723,1712641855628,-700.78,0.00021095,2]
[321933724,1712641855637,-500.0,0.00021095,2]
[321933725,1712641855646,-500.0,0.00021095,2]
[321933726,1712641855655,-500.0,0.00021095,2]
[321933727,1712641855665,-500.0,0.00021095,2]
[321933728,1712641855674,-500.0,0.00021095,2]
[321933729,1712641855683,-500.0,0.00021095,2]
[321933730,1712641855693,-520.40637134,0.00021095,2]
[321933731,1712641855701,-500.0,0.00021095,2]
[321933732,1712641855711,-500.0,0.00021095,2]
[321933733,1712641855720,-500.0,0.00021095,2]
[321933734,1712641855730,-500.0,0.00021095,2]
[321933735,1712641855739,-500.0,0.00021095,2]
[321933736,1712641855748,-500.0,0.00021095,2]
[321933737,1712641855758,-552.47979931,0.00021095,2]
[321933738,1712641855766,-500.0,0.00021095,2]
[321933739,1712641855776,-500.0,0.00021095,2]
[321933740,1712641855786,-482.43702305,0.00021095,2]
[321933741,1712641855797,-500.0,0.00021095,2]
[321933742,1712641855807,-500.0,0.00021095,2]
[321933743,1712641855817,-500.0,0.00021095,2]
[321933744,1712641855826,-500.0,0.00021095,2]
[321933745,1712641855836,-500.0,0.00021095,2]
[321933746,1712641855845,-500.0,0.00021095,2]
[321933747,1712641855855,-1231.09,0.00021095,2]
[321933748,1712641855864,-500.0,0.00021095,2]
[321933749,1712641855874,-500.0,0.00021095,2]
[321933750,1712641855883,-1269.19,0.00021095,2]
[321933751,1712641855893,-621.17,0.00021095,2]
[321933752,1712641855902,-500.0,0.00021095,2]
[321933753,1712641855912,-500.0,0.00021095,2]
[321933754,1712641855922,-500.0,0.00021095,2]
[321933755,1712641855932,-500.0,0.00021095,2]
[321933756,1712641855942,-500.0,0.00021095,2]
[321933757,1712641855952,-500.0,0.00021095,2]
[321933758,1712641855962,-500.0,0.00021095,2]
[321933759,1712641855972,-543.72108206,0.00021095,2]
[321933760,1712641855981,-810.66,0.00021095,2]
[321933761,1712641855992,-520.27,0.00021095,2]
[321933762,1712641856001,-500.0,0.00021095,2]
[321933763,1712641856012,-500.0,0.00021095,2]
[321933764,1712641856021,-500.0,0.00021095,2]
[321933765,1712641856030,-500.0,0.00021095,2]
[321933766,1712641856039,-500.0,0.00021095,2]
[321933767,1712641856049,-500.0,0.00021095,2]
[321933768,1712641856059,-502.8,0.00021095,2]
[321933769,1712641856070,-552.39,0.00021095,2]
[321933770,1712641856079,-889.73,0.00021095,2]
[321933771,1712641856088,-500.0,0.00021095,2]
[321933772,1712641856097,-500.0,0.00021095,2]
[321933773,1712641856108,-566.15,0.00021095,2]
[321933774,1712641856117,-500.0,0.00021095,2]
[321933775,1712641856125,-2104.91,0.00021095,2]
[321933776,1712641856134,-684.47,0.00021095,2]
[321933777,1712641856144,-500.0,0.00021095,2]
[321933778,1712641856154,-750.51,0.00021095,2]
[321933779,1712641856163,-500.0,0.00021095,2]
[321933780,1712641856173,-500.0,0.00021095,2]
[321933781,1712641856182,-2211.66,0.00021095,2]
[321933782,1712641856191,-500.0,0.00021095,2]
[321933783,1712641856200,-500.0,0.00021095,2]
[321933784,1712641856210,-500.0,0.00021095,2]
[321933785,1712641856219,-500.0,0.00021095,2]
[321933786,1712641856230,-507.98234926,0.00021095,2]
[321933787,1712641856240,-1329.48,0.00021095,2]
[321933788,1712641856250,-500.0,0.00021095,2]
[321933789,1712641856261,-506.19237059,0.00021095,2]
[321933790,1712641856271,-1837.11,0.00021095,2]
[321933791,1712641856281,-500.0,0.00021095,2]
[321933792,1712641856293,-1283.4,0.00021095,2]
[321933793,1712641856304,-500.0,0.00021095,2]
[321933794,1712641856313,-517.54147199,0.00021095,2]
[321933795,1712641856323,-1954.69,0.00021095,2]
[321933796,1712641856334,-500.0,0.00021095,2]
[321933797,1712641856344,-576.25,0.00021095,2]
[321933798,1712641856354,-558.09642286,0.00021095,2]
[321933799,1712641856363,-512.73405483,0.00021095,2]
[321933800,1712641856374,-500.0,0.00021095,2]
[321933801,1712641856384,-500.0,0.00021095,2]
[321933802,1712641856396,-500.0,0.00021095,2]
[321933803,1712641856407,-500.0,0.00021095,2]
[321933804,1712641856418,-326.06,0.00021095,2]
[321933805,1712641856428,-692.39,0.00021095,2]
[321933806,1712641856438,-500.0,0.00021095,2]